[Event "95th Caplin Hastings Congress"]
[Site "Hastings"]
[Date "2019.12.30"]
[Round "3.51"]
[White "Sugden, John N"]
[Black "Butt, Laurence"]
[Result "0-1"]
[ECO "A90"]
[WhiteElo "2065"]
[BlackElo "1694"]
[Annotator "NA"]
[PlyCount "82"]
[EventDate "2019.12.28"]
[EventType "swiss"]
[EventCountry "ENG"]
[SourceTitle "playchess.com"]
[Source "ChessBase"]
[SourceQuality "1"]
[TimeControl "40/6600+30:3000+30"]

1. d4 {[%emt 0:09:49]} f5 {[%emt 0:09:14]} 2. g3 {[%emt 0:00:27]} e6 {[%emt 0:00:06]} 3. Bg2 {[%emt 0:00:15]} Nf6 {[%emt 0:00:09]} 4. Nf3 {[%emt 0:00:50]} d5 {[%emt 0:00:13]} 5. O-O {[%emt 0:01:20]} Bd6 {[%emt 0:00:02]} 6. c4 {[%emt 0:01:51]} c6 {[%emt 0:01:37]} 7. b3 {[%emt 0:02:20]} Qe7 {[%emt 0:00:27]} 8. Nc3 {[%emt 0:06:28]} O-O {[%emt 0:00:23]} 9. Bf4 {[%emt 0:10:13]} Nbd7 {[%emt 0:03:44]} 10. Ne5 {[%emt 0:09:59]} g5 {[%emt 0:04:09]} 11. Nxd7 {[%emt 0:02:46]} Nxd7 {[%emt 0:04:05]} 12. Bxd6 {[%emt 0:01:03]} Qxd6 {[%emt 0:00:08]} 13. Qd2 {[%emt 0:07:06]} Qe7 {[%emt 0:01:18]} 14. f3 {[%emt 0:08:06]} Qg7 {[%emt 0:01:33]} 15. e4 {[%emt 0:03:13]} Nf6 {[%emt 0:00:57]} 16. e5 {[%emt 0:08:14]} Ne8 {[%emt 0:03:21]} 17. f4 {[%emt 0:01:11]} gxf4 {[%emt 0:09:45]} 18. gxf4 {[%emt 0:00:54]} Bd7 {[%emt 0:01:54]} 19. Kh1 {[%emt 0:00:38]} Kh8 {[%emt 0:00:14]} 20. Rg1 {[%emt 0:06:22]} Qh6 {[%emt 0:00:06]} 21. Bf3 {[%emt 0:05:09]} Ng7 {[%emt 0:00:31]} 22. Rg5 {[%emt 0:01:24]} Be8 {[%emt 0:01:22]} 23. Qe2 {[%emt 0:04:35]} Bg6 {[%emt 0:01:22]} 24. Qg2 {[%emt 0:05:52]} Ne8 {[%emt 0:02:31]} 25. Ne2 {[%emt 0:01:33]} Nc7 {[%emt 0:06:00]} 26. Rg3 {[%emt 0:01:09]} Rg8 {[%emt 0:00:33]} 27. Rh3 {[%emt 0:01:08]} Qg7 {[%emt 0:00:53]} 28. Qf2 {[%emt 0:01:11]} Qe7 {[%emt 0:00:29]} 29. Bg2 {[%emt 0:03:06]} a5 {[%emt 0:00:42]} 30. Nc3 {[%emt 0:02:31]} b5 {[%emt 0:00:48]} 31. cxb5 {[%emt 0:00:51]} cxb5 {[%emt 0:00:33]} 32. Bf1 {[%emt 0:01:44]} Be8 {[%emt 0:01:54]} 33. Be2 {[%emt 0:00:56]} b4 {[%emt 0:04:12]} 34. Na4 {[%emt 0:02:19]} Bb5 {[%emt 0:01:14]} 35. Bxb5 {[%emt 0:01:26]} Nxb5 {[%emt 0:00:04]} 36. Rc1 {[%emt 0:01:55]} Rac8 {[%emt 0:00:25]} 37. Rc5 {[%emt 0:01:44]} Rxc5 {[%emt 0:00:18]} 38. dxc5 {[%emt 0:01:32]} d4 {[%emt 0:00:19]} 39. Rg3 {[%emt 0:01:05]} Rd8 {[%emt 0:02:01]} 40. Rd3 {[%emt 0:03:15]} Qb7+ {[%emt 0:00:20]} 41. Qg2 {[%emt 0:51:51]} Qe4 {[%emt 0:50:15]} 0-1

[Event "95th Caplin Hastings Congress"]
[Site "Hastings"]
[Date "2019.12.30"]
[Round "3.52"]
[White "Flynn, David"]
[Black "Sandhu, Manvith"]
[Result "1/2-1/2"]
[ECO "B01"]
[WhiteElo "1853"]
[BlackElo "1673"]
[Annotator "NA"]
[PlyCount "32"]
[EventDate "2019.12.28"]
[EventType "swiss"]
[EventCountry "ENG"]
[SourceTitle "playchess.com"]
[Source "ChessBase"]
[SourceQuality "1"]
[TimeControl "40/6600+30:3000+30"]

1. e4 {[%emt 0:12:55]} Nc6 {[%emt 0:09:34]} 2. d4 {[%emt 0:00:31]} d5 {[%emt 0:00:05]} 3. exd5 {[%emt 0:00:06]} Qxd5 {[%emt 0:00:09]} 4. Nf3 {[%emt 0:00:19]} e5 {[%emt 0:00:08]} 5. Nc3 {[%emt 0:00:41]} Bb4 {[%emt 0:00:07]} 6. Bd2 {[%emt 0:00:08]} Bxc3 {[%emt 0:00:07]} 7. Bxc3 {[%emt 0:00:09]} e4 {[%emt 0:00:07]} 8. Ne5 {[%emt 0:00:14]} Nxe5 {[%emt 0:04:10]} 9. dxe5 {[%emt 0:00:14]} Ne7 {[%emt 0:00:32]} 10. Qe2 {[%emt 0:02:02]} O-O {[%emt 0:03:34]} 11. Rd1 {[%emt 0:03:23]} Qc6 {[%emt 0:02:43]} 12. Rd4 {[%emt 0:24:13]} Bf5 {[%emt 0:06:09]} 13. Qd1 {[%emt 0:12:25]} Ng6 {[%emt 0:09:22]} 14. Rc4 {[%emt 0:20:42]} Qb6 {[%emt 0:10:39]} 15. Rb4 {[%emt 0:13:21]} Qc6 {[%emt 0:13:10]} 16. Bb5 {[%emt 0:07:09]} Qc5 {[%emt 0:01:12]} 1/2-1/2

[Event "95th Caplin Hastings Congress"]
[Site "Hastings"]
[Date "2019.12.30"]
[Round "3.53"]
[White "Miller, George"]
[Black "Lakshmi Raja Perumal K"]
[Result "1-0"]
[ECO "C50"]
[WhiteElo "1845"]
[BlackElo "1492"]
[Annotator "NA"]
[PlyCount "57"]
[EventDate "2019.12.28"]
[EventType "swiss"]
[EventCountry "ENG"]
[SourceTitle "playchess.com"]
[Source "ChessBase"]
[SourceQuality "1"]
[TimeControl "40/6600+30:3000+30"]

1. e4 {[%emt 0:09:34]} e5 {[%emt 0:09:38]} 2. Nf3 {[%emt 0:00:09]} Nc6 {[%emt 0:00:11]} 3. d4 {[%emt 0:00:20]} d6 {[%emt 0:04:41]} 4. Bc4 {[%emt 0:00:33]} exd4 {[%emt 0:05:53]} 5. Nxd4 {[%emt 0:02:21]} Ne5 {[%emt 0:08:33]} 6. Bb3 {[%emt 0:06:54]} c5 {[%emt 0:08:21]} 7. Ba4+ {[%emt 0:19:25]} Bd7 {[%emt 0:00:42]} 8. Bxd7+ {[%emt 0:02:52]} Qxd7 {[%emt 0:00:09]} 9. Nf5 {[%emt 0:00:18]} g6 {[%emt 0:05:58]} 10. Ne3 {[%emt 0:00:17]} Bg7 {[%emt 0:08:48]} 11. Nc3 {[%emt 0:01:51]} Ne7 {[%emt 0:03:40]} 12. Ned5 {[%emt 0:03:54]} O-O {[%emt 0:09:41]} 13. Bg5 {[%emt 0:13:47]} f6 {[%emt 0:04:29]} 14. Bf4 {[%emt 0:02:36]} Rfe8 {[%emt 0:07:28]} 15. Bxe5 {[%emt 0:00:57]} Nxd5 {[%emt 0:03:14]} 16. Qxd5+ {[%emt 0:00:25]} Re6 {[%emt 0:00:36]} 17. Bf4 {[%emt 0:00:00]} Kh8 {[%emt 0:03:09]} 18. O-O-O {[%emt 0:01:17]} f5 {[%emt 0:02:39]} 19. exf5 {[%emt 0:00:21]} gxf5 {[%emt 0:00:23]} 20. Rhe1 {[%emt 0:01:55]} Rae8 {[%emt 0:00:27]} 21. Rxe6 {[%emt 0:00:19]} Rxe6 {[%emt 0:00:06]} 22. Bxd6 {[%emt 0:01:04]} Bxc3 {[%emt 0:08:00]} 23. Be5+ {[%emt 0:00:39]} Bxe5 {[%emt 0:04:07]} 24. Qxd7 {[%emt 0:00:10]} Bf4+ {[%emt 0:00:47]} 25. Kb1 {[%emt 0:00:12]} Re2 {[%emt 0:02:36]} 26. Qf7 {[%emt 0:00:42]} Bd6 {[%emt 0:01:24]} 27. b4 {[%emt 0:01:04]} Be7 {[%emt 0:01:03]} 28. Rd8+ {[%emt 0:00:16]} Bxd8 {[%emt 0:00:49]} 29. Qf8# {[%emt 0:00:52]} 1-0

[Event "95th Caplin Hastings Congress"]
[Site "Hastings"]
[Date "2019.12.30"]
[Round "3.54"]
[White "Khoo-Thwe, Louis"]
[Black "Gisbert Mir, Alejandro"]
[Result "1/2-1/2"]
[ECO "C55"]
[WhiteElo "1690"]
[BlackElo "1835"]
[Annotator "NA"]
[PlyCount "99"]
[EventDate "2019.12.28"]
[EventType "swiss"]
[EventCountry "ENG"]
[SourceTitle "playchess.com"]
[Source "ChessBase"]
[SourceQuality "1"]
[TimeControl "40/6600+30:3000+30"]

1. e4 {[%emt 0:09:32]} e5 {[%emt 0:12:17]} 2. Nf3 {[%emt 0:00:08]} Nc6 {[%emt 0:00:06]} 3. Bc4 {[%emt 0:00:05]} Nf6 {[%emt 0:00:21]} 4. d3 {[%emt 0:00:06]} Be7 {[%emt 0:00:05]} 5. O-O {[%emt 0:00:07]} O-O {[%emt 0:00:04]} 6. c3 {[%emt 0:00:05]} d6 {[%emt 0:00:04]} 7. Be3 {[%emt 0:00:08]} a6 {[%emt 0:01:41]} 8. b4 {[%emt 0:00:52]} b5 {[%emt 0:04:34]} 9. Bb3 {[%emt 0:00:18]} d5 {[%emt 0:02:30]} 10. exd5 {[%emt 0:04:31]} Nxd5 {[%emt 0:00:24]} 11. a3 {[%emt 0:03:08]} a5 {[%emt 0:05:31]} 12. Bxd5 {[%emt 0:07:56]} Qxd5 {[%emt 0:00:07]} 13. c4 {[%emt 0:01:06]} bxc4 {[%emt 0:00:43]} 14. Nc3 {[%emt 0:00:08]} Qxd3 {[%emt 0:00:32]} 15. Qxd3 {[%emt 0:00:07]} cxd3 {[%emt 0:00:11]} 16. b5 {[%emt 0:00:03]} Nd4 {[%emt 0:03:00]} 17. Bxd4 {[%emt 0:04:09]} exd4 {[%emt 0:00:09]} 18. Nd5 {[%emt 0:08:25]} Bd6 {[%emt 0:01:21]} 19. Rfe1 {[%emt 0:02:10]} Be6 {[%emt 0:02:01]} 20. Re5 {[%emt 0:03:41]} Bxe5 {[%emt 0:00:19]} 21. Ne7+ {[%emt 0:00:07]} Kh8 {[%emt 0:00:24]} 22. Nxe5 {[%emt 0:00:08]} Rfe8 {[%emt 0:03:52]} 23. N7c6 {[%emt 0:00:19]} Bd5 {[%emt 0:00:43]} 24. Nxd3 {[%emt 0:01:51]} Bxc6 {[%emt 0:00:08]} 25. bxc6 {[%emt 0:00:05]} Rab8 {[%emt 0:00:16]} 26. Rd1 {[%emt 0:07:34]} Rb3 {[%emt 0:03:25]} 27. Nf4 {[%emt 0:01:42]} Rc3 {[%emt 0:02:46]} 28. g3 {[%emt 0:00:27]} Rxc6 {[%emt 0:00:18]} 29. Rxd4 {[%emt 0:00:16]} g6 {[%emt 0:05:06]} 30. Rd5 {[%emt 0:01:10]} a4 {[%emt 0:05:04]} 31. Rd3 {[%emt 0:04:00]} Rb8 {[%emt 0:03:51]} 32. Rd4 {[%emt 0:08:57]} Ra6 {[%emt 0:02:24]} 33. Rd7 {[%emt 0:00:50]} c6 {[%emt 0:00:57]} 34. Rxf7 {[%emt 0:00:26]} Kg8 {[%emt 0:04:03]} 35. Rc7 {[%emt 0:07:07]} Rb3 {[%emt 0:00:52]} 36. Rc8+ {[%emt 0:00:34]} Kf7 {[%emt 0:01:18]} 37. Rc7+ {[%emt 0:00:11]} Kf6 {[%emt 0:00:07]} 38. Rxh7 {[%emt 0:00:18]} Rxa3 {[%emt 0:00:03]} 39. Rh6 {[%emt 0:00:12]} Rf3 {[%emt 0:00:47]} 40. Rxg6+ {[%emt 0:00:21]} Kf5 {[%emt 0:00:17]} 41. Rg8 {[%emt 0:54:19]} Rxf4 {[%emt 0:50:21]} 42. Rf8+ {[%emt 0:00:32]} Ke5 {[%emt 0:00:09]} 43. gxf4+ {[%emt 0:00:13]} Ke4 {[%emt 0:00:15]} 44. Re8+ {[%emt 0:00:54]} Kxf4 {[%emt 0:00:22]} 45. Re2 {[%emt 0:00:59]} a3 {[%emt 0:00:13]} 46. Ra2 {[%emt 0:00:07]} c5 {[%emt 0:02:00]} 47. Kf1 {[%emt 0:00:13]} Kf3 {[%emt 0:02:13]} 48. Ke1 {[%emt 0:00:18]} c4 {[%emt 0:02:00]} 49. Kd2 {[%emt 0:00:12]} Kxf2 {[%emt 0:02:46]} 50. Kc3+ {[%emt 0:00:08]} 1/2-1/2

[Event "95th Caplin Hastings Congress"]
[Site "Hastings"]
[Date "2019.12.30"]
[Round "3.55"]
[White "Zheng, Harry Z"]
[Black "Mineev, Sergey I."]
[Result "0-1"]
[ECO "B12"]
[WhiteElo "1705"]
[BlackElo "1588"]
[Annotator "NA"]
[PlyCount "88"]
[EventDate "2019.12.28"]
[EventType "swiss"]
[EventCountry "ENG"]
[SourceTitle "playchess.com"]
[Source "ChessBase"]
[SourceQuality "1"]
[TimeControl "40/6600+30:3000+30"]

1. e4 {[%emt 1:30:49]} c6 {[%emt 0:00:07]} 2. d4 {[%emt 0:00:06]} d5 {[%emt 0:00:03]} 3. e5 {[%emt 0:00:09]} Bf5 {[%emt 0:00:06]} 4. h4 {[%emt 0:00:07]} h5 {[%emt 0:00:05]} 5. Bd3 {[%emt 0:00:06]} Bxd3 {[%emt 0:00:05]} 6. Qxd3 {[%emt 0:00:13]} e6 {[%emt 0:00:05]} 7. Bg5 {[%emt 0:00:09]} Qb6 {[%emt 0:00:04]} 8. Nd2 {[%emt 0:00:17]} c5 {[%emt 0:04:28]} 9. c4 {[%emt 0:02:21]} Qxb2 {[%emt 0:00:11]} 10. Rd1 {[%emt 0:00:34]} Qxd4 {[%emt 0:02:35]} 11. Qg3 {[%emt 0:07:43]} Nc6 {[%emt 0:08:20]} 12. Ne2 {[%emt 0:20:14]} Qxe5 {[%emt 0:06:03]} 13. Bf4 {[%emt 0:09:35]} Qf5 {[%emt 0:05:59]} 14. O-O {[%emt 0:02:31]} Nf6 {[%emt 0:09:13]} 15. Nc3 {[%emt 0:09:30]} Be7 {[%emt 0:10:18]} 16. Bd6 {[%emt 0:14:49]} Qg4 {[%emt 0:03:27]} 17. Qh2 {[%emt 0:11:05]} O-O {[%emt 0:04:33]} 18. Rfe1 {[%emt 0:11:22]} Rfd8 {[%emt 0:16:51]} 19. Bc7 {[%emt 0:09:10]} Rd7 {[%emt 0:00:49]} 20. cxd5 {[%emt 0:00:28]} Nxd5 {[%emt 0:00:46]} 21. Nxd5 {[%emt 0:02:34]} Rxd5 {[%emt 0:00:27]} 22. Bf4 {[%emt 0:00:15]} Qxh4 {[%emt 0:00:55]} 23. Qxh4 {[%emt 0:02:04]} Bxh4 {[%emt 0:00:09]} 24. Nf3 {[%emt 0:00:08]} Bf6 {[%emt 0:01:26]} 25. Bd6 {[%emt 0:01:26]} Rxd1 {[%emt 0:00:35]} 26. Rxd1 {[%emt 0:00:14]} Rd8 {[%emt 0:00:21]} 27. Rd2 {[%emt 0:00:16]} Be7 {[%emt 0:00:25]} 28. Bxe7 {[%emt 0:00:32]} Rxd2 {[%emt 0:00:06]} 29. Nxd2 {[%emt 0:00:58]} Nxe7 {[%emt 0:00:09]} 30. Kf1 {[%emt 0:00:10]} Kf8 {[%emt 0:00:17]} 31. Ke2 {[%emt 0:00:06]} Ke8 {[%emt 0:00:06]} 32. Kd3 {[%emt 0:00:02]} Kd7 {[%emt 0:00:11]} 33. Ne4 {[%emt 0:00:13]} b6 {[%emt 0:01:04]} 34. Kc4 {[%emt 0:00:15]} Nf5 {[%emt 0:00:49]} 35. Kb5 {[%emt 0:00:19]} Nd6+ {[%emt 0:00:12]} 36. Ka6 {[%emt 0:00:21]} Nxe4 {[%emt 0:00:10]} 37. Kxa7 {[%emt 0:00:06]} Kc7 {[%emt 0:00:07]} 38. Ka8 {[%emt 0:00:07]} c4 {[%emt 0:00:08]} 39. a4 {[%emt 0:00:07]} c3 {[%emt 0:00:05]} 40. a5 {[%emt 0:00:03]} bxa5 {[%emt 0:00:10]} 41. f3 {[%emt 0:00:07]} c2 {[%emt 0:00:05]} 42. fxe4 {[%emt 0:00:03]} c1=Q {[%emt 0:00:09]} 43. e5 {[%emt 0:00:03]} Qc6+ {[%emt 0:00:17]} 44. Ka7 {[%emt 0:00:05]} Qb7# {[%emt 0:00:10]} 0-1

[Event "95th Caplin Hastings Congress"]
[Site "Hastings"]
[Date "2019.12.30"]
[Round "3.56"]
[White "Byrn, Carsten"]
[Black "Damodaran, Patrick"]
[Result "1-0"]
[ECO "A71"]
[WhiteElo "1919"]
[BlackElo "1388"]
[Annotator "NA"]
[PlyCount "117"]
[EventDate "2019.12.28"]
[EventType "swiss"]
[EventCountry "ENG"]
[SourceTitle "playchess.com"]
[Source "ChessBase"]
[SourceQuality "1"]
[TimeControl "40/6600+30:3000+30"]

1. d4 {[%emt 1:27:23]} Nf6 {[%emt 0:02:02]} 2. c4 {[%emt 0:00:02]} c5 {[%emt 0:02:02]} 3. d5 {[%emt 0:01:19]} e6 {[%emt 0:02:39]} 4. Nc3 {[%emt 0:00:10]} exd5 {[%emt 0:02:12]} 5. cxd5 {[%emt 0:00:00]} d6 {[%emt 0:02:20]} 6. e4 {[%emt 0:00:23]} g6 {[%emt 0:02:42]} 7. Nf3 {[%emt 0:00:16]} Bg7 {[%emt 0:02:11]} 8. Bg5 {[%emt 0:00:22]} O-O {[%emt 0:03:36]} 9. Nd2 {[%emt 0:02:39]} Re8 {[%emt 0:12:37]} 10. Bb5 {[%emt 0:04:33]} Bd7 {[%emt 0:01:51]} 11. Be2 {[%emt 0:00:00]} h6 {[%emt 0:02:41]} 12. Bh4 {[%emt 0:00:36]} Bc8 {[%emt 0:02:53]} 13. O-O {[%emt 0:00:29]} Nbd7 {[%emt 0:02:12]} 14. Qc2 {[%emt 0:05:25]} Nb6 {[%emt 0:02:12]} 15. f3 {[%emt 0:01:40]} g5 {[%emt 0:03:17]} 16. Bg3 {[%emt 0:00:26]} Nfxd5 {[%emt 0:02:15]} 17. Nxd5 {[%emt 0:00:55]} Nxd5 {[%emt 0:01:43]} 18. Nc4 {[%emt 0:08:44]} Bd4+ {[%emt 0:02:56]} 19. Bf2 {[%emt 0:03:08]} Bxf2+ {[%emt 0:02:22]} 20. Rxf2 {[%emt 0:00:03]} Nf4 {[%emt 0:00:12]} 21. Rd1 {[%emt 0:00:47]} Re6 {[%emt 0:05:41]} 22. Bf1 {[%emt 0:03:30]} b5 {[%emt 0:03:34]} 23. Ne3 {[%emt 0:01:15]} Ba6 {[%emt 0:00:46]} 24. g3 {[%emt 0:01:13]} Ng6 {[%emt 0:01:01]} 25. Nf5 {[%emt 0:00:29]} Ne7 {[%emt 0:00:53]} 26. Bh3 {[%emt 0:16:15]} Nxf5 {[%emt 0:01:19]} 27. Bxf5 {[%emt 0:01:07]} Re8 {[%emt 0:03:12]} 28. Rfd2 {[%emt 0:01:28]} Qa5 {[%emt 0:03:06]} 29. Rxd6 {[%emt 0:07:17]} Rad8 {[%emt 0:01:34]} 30. Qxc5 {[%emt 0:05:07]} Rxd6 {[%emt 0:00:43]} 31. Qxd6 {[%emt 0:01:44]} Kg7 {[%emt 0:01:55]} 32. Qd4+ {[%emt 0:01:37]} Kg8 {[%emt 0:00:55]} 33. Qf6 {[%emt 0:03:05]} Qb6+ {[%emt 0:00:18]} 34. Qxb6 {[%emt 0:00:04]} axb6 {[%emt 0:00:09]} 35. Rd6 {[%emt 0:00:09]} Bc8 {[%emt 0:00:13]} 36. Rxb6 {[%emt 0:01:05]} Bxf5 {[%emt 0:00:06]} 37. exf5 {[%emt 0:00:19]} Ra8 {[%emt 0:00:14]} 38. a3 {[%emt 0:00:31]} Ra5 {[%emt 0:00:10]} 39. Rxh6 {[%emt 0:00:27]} Kg7 {[%emt 0:00:06]} 40. Rb6 {[%emt 0:00:25]} f6 {[%emt 0:01:39]} 41. g4 {[%emt 0:00:55]} Kf7 {[%emt 0:00:11]} 42. Kg2 {[%emt 0:00:17]} Ke7 {[%emt 0:00:10]} 43. Kg3 {[%emt 0:00:08]} Kf7 {[%emt 0:00:12]} 44. h4 {[%emt 0:00:17]} gxh4+ {[%emt 0:00:10]} 45. Kxh4 {[%emt 0:00:02]} Kg7 {[%emt 0:00:14]} 46. Kh5 {[%emt 0:00:12]} Kf7 {[%emt 0:00:09]} 47. Rb7+ {[%emt 0:00:17]} Kf8 {[%emt 0:00:10]} 48. Kg6 {[%emt 0:00:12]} Ke8 {[%emt 0:00:12]} 49. Kxf6 {[%emt 0:00:16]} Ra6+ {[%emt 0:00:09]} 50. Kg7 {[%emt 0:00:34]} b4 {[%emt 0:00:09]} 51. f6 {[%emt 0:00:19]} Rxf6 {[%emt 0:00:09]} 52. Kxf6 {[%emt 0:00:23]} bxa3 {[%emt 0:00:08]} 53. bxa3 {[%emt 0:00:08]} Kd8 {[%emt 0:00:10]} 54. g5 {[%emt 0:00:05]} Kc8 {[%emt 0:00:06]} 55. Rh7 {[%emt 0:00:16]} Kd8 {[%emt 0:00:09]} 56. g6 {[%emt 0:00:03]} Ke8 {[%emt 0:00:09]} 57. Ra7 {[%emt 0:00:15]} Kd8 {[%emt 0:00:10]} 58. g7 {[%emt 0:00:08]} Kc8 {[%emt 0:00:08]} 59. g8=R# {[%emt 0:01:23]} 1-0

[Event "95th Caplin Hastings Congress"]
[Site "Hastings"]
[Date "2019.12.30"]
[Round "3.57"]
[White "Ratnesan, Radha"]
[Black "Varney, Zoe"]
[Result "1-0"]
[ECO "A06"]
[WhiteElo "1477"]
[BlackElo "2004"]
[Annotator "NA"]
[PlyCount "63"]
[EventDate "2019.12.28"]
[EventType "swiss"]
[EventCountry "ENG"]
[SourceTitle "playchess.com"]
[Source "ChessBase"]
[SourceQuality "1"]
[TimeControl "40/6600+30:3000+30"]

1. d4 {[%emt 0:09:32]} d5 {[%emt 0:09:34]} 2. c4 {[%emt 0:00:05]} e6 {[%emt 0:00:04]} 3. Nf3 {[%emt 0:00:06]} Nf6 {[%emt 0:00:04]} 4. e3 {[%emt 0:00:17]} c6 {[%emt 0:00:07]} 5. b3 {[%emt 0:00:13]} Nbd7 {[%emt 0:00:08]} 6. Bb2 {[%emt 0:00:08]} Bd6 {[%emt 0:00:08]} 7. Bd3 {[%emt 0:00:07]} O-O {[%emt 0:01:16]} 8. O-O {[%emt 0:00:37]} Qe7 {[%emt 0:00:48]} 9. Ne5 {[%emt 0:00:56]} c5 {[%emt 0:10:17]} 10. Nd2 {[%emt 0:04:10]} b6 {[%emt 0:06:47]} 11. Qe2 {[%emt 0:09:34]} Bb7 {[%emt 0:04:25]} 12. Ndf3 {[%emt 0:05:20]} Ne4 {[%emt 0:09:46]} 13. Rac1 {[%emt 0:09:31]} Nb8 {[%emt 0:05:52]} 14. Bb1 {[%emt 0:08:11]} f5 {[%emt 0:08:49]} 15. Nd2 {[%emt 0:07:56]} cxd4 {[%emt 0:07:00]} 16. exd4 {[%emt 0:02:44]} Nxd2 {[%emt 0:08:02]} 17. Qxd2 {[%emt 0:00:36]} Rf6 {[%emt 0:11:33]} 18. f4 {[%emt 0:12:25]} Rh6 {[%emt 0:06:02]} 19. cxd5 {[%emt 0:03:35]} Bxd5 {[%emt 0:01:01]} 20. Rc8+ {[%emt 0:00:43]} Qf8 {[%emt 0:00:51]} 21. Rxf8+ {[%emt 0:00:12]} Bxf8 {[%emt 0:01:08]} 22. h3 {[%emt 0:01:02]} Nc6 {[%emt 0:00:16]} 23. Nxc6 {[%emt 0:00:53]} Bxc6 {[%emt 0:00:06]} 24. Rf2 {[%emt 0:01:38]} Be7 {[%emt 0:00:27]} 25. Qc3 {[%emt 0:01:30]} Bd5 {[%emt 0:00:36]} 26. Bd3 {[%emt 0:01:10]} Rf8 {[%emt 0:01:41]} 27. Bc4 {[%emt 0:01:56]} Be4 {[%emt 0:00:23]} 28. Bd3 {[%emt 0:03:53]} Bd5 {[%emt 0:00:54]} 29. Qc7 {[%emt 0:00:45]} Bh4 {[%emt 0:00:37]} 30. Re2 {[%emt 0:00:54]} Bg3 {[%emt 0:00:57]} 31. Bc4 {[%emt 0:01:59]} Rf7 {[%emt 0:05:04]} 32. Qd6 {[%emt 0:01:30]} 1-0

[Event "95th Caplin Hastings Congress"]
[Site "Hastings"]
[Date "2019.12.30"]
[Round "3.58"]
[White "Liu, Tianyi"]
[Black "Wilson, Matthew R"]
[Result "0-1"]
[ECO "B82"]
[WhiteElo "1307"]
[BlackElo "1837"]
[Annotator "NA"]
[PlyCount "158"]
[EventDate "2019.12.28"]
[EventType "swiss"]
[EventCountry "ENG"]
[SourceTitle "playchess.com"]
[Source "ChessBase"]
[SourceQuality "1"]
[TimeControl "40/6600+30:3000+30"]

1. e4 {[%emt 0:10:17]} c5 {[%emt 0:09:34]} 2. Nf3 {[%emt 0:00:13]} e6 {[%emt 0:00:05]} 3. d4 {[%emt 0:00:06]} cxd4 {[%emt 0:00:05]} 4. Nxd4 {[%emt 0:00:10]} a6 {[%emt 0:00:03]} 5. Nc3 {[%emt 0:07:47]} Qc7 {[%emt 0:00:05]} 6. Bd3 {[%emt 0:09:28]} Nf6 {[%emt 0:01:19]} 7. O-O {[%emt 0:10:47]} d6 {[%emt 0:00:55]} 8. Kh1 {[%emt 0:11:07]} Nbd7 {[%emt 0:01:38]} 9. f4 {[%emt 0:06:05]} Be7 {[%emt 0:03:00]} 10. Qe2 {[%emt 0:07:04]} b5 {[%emt 0:01:22]} 11. a3 {[%emt 0:05:55]} Bb7 {[%emt 0:00:57]} 12. Nb3 {[%emt 0:11:55]} O-O {[%emt 0:04:55]} 13. Bd2 {[%emt 0:05:17]} Rac8 {[%emt 0:10:17]} 14. Rae1 {[%emt 0:06:58]} Nb6 {[%emt 0:07:20]} 15. e5 {[%emt 0:08:03]} Nfd7 {[%emt 0:05:20]} 16. exd6 {[%emt 0:09:19]} Bxd6 {[%emt 0:01:53]} 17. Ne4 {[%emt 0:01:07]} Bxe4 {[%emt 0:06:15]} 18. Qxe4 {[%emt 0:00:36]} Nf6 {[%emt 0:00:09]} 19. Qf3 {[%emt 0:00:43]} Nc4 {[%emt 0:03:06]} 20. Bc3 {[%emt 0:01:02]} Be7 {[%emt 0:11:18]} 21. Bxc4 {[%emt 0:01:19]} Qxc4 {[%emt 0:02:32]} 22. Nd2 {[%emt 0:01:25]} Qd5 {[%emt 0:04:02]} 23. Bxf6 {[%emt 0:01:46]} Qxf3 {[%emt 0:00:12]} 24. Nxf3 {[%emt 0:00:22]} Bxf6 {[%emt 0:00:24]} 25. c3 {[%emt 0:00:08]} Rfd8 {[%emt 0:03:41]} 26. Rd1 {[%emt 0:00:22]} Kf8 {[%emt 0:04:50]} 27. Kg1 {[%emt 0:01:13]} a5 {[%emt 0:02:32]} 28. Kf2 {[%emt 0:02:05]} b4 {[%emt 0:00:19]} 29. axb4 {[%emt 0:00:10]} axb4 {[%emt 0:00:14]} 30. Rxd8+ {[%emt 0:00:19]} Bxd8 {[%emt 0:01:04]} 31. Rc1 {[%emt 0:00:35]} Bf6 {[%emt 0:06:26]} 32. Ke2 {[%emt 0:00:48]} bxc3 {[%emt 0:00:31]} 33. bxc3 {[%emt 0:00:06]} Rxc3 {[%emt 0:00:11]} 34. Rxc3 {[%emt 0:00:05]} Bxc3 {[%emt 0:00:03]} 35. Kd3 {[%emt 0:00:16]} Bf6 {[%emt 0:01:38]} 36. Ke4 {[%emt 0:00:39]} g6 {[%emt 0:05:24]} 37. g4 {[%emt 0:00:50]} h6 {[%emt 0:04:10]} 38. h4 {[%emt 0:01:22]} h5 {[%emt 0:00:28]} 39. g5 {[%emt 0:00:14]} Bc3 {[%emt 0:00:18]} 40. Kd3 {[%emt 0:00:45]} Ba5 {[%emt 0:01:07]} 41. Ke4 {[%emt 0:03:54]} Bb4 {[%emt 0:03:00]} 42. Ne5 {[%emt 0:02:28]} Ba5 {[%emt 0:02:17]} 43. Nf3 {[%emt 0:00:25]} Bc7 {[%emt 0:03:18]} 44. Ne5 {[%emt 0:04:48]} Ke7 {[%emt 0:03:24]} 45. Nc6+ {[%emt 0:04:27]} Kd7 {[%emt 0:02:35]} 46. Nd4 {[%emt 0:15:50]} Bb8 {[%emt 0:02:57]} 47. Nf3 {[%emt 0:04:15]} Kc6 {[%emt 0:02:54]} 48. Nd4+ {[%emt 0:04:16]} Kd6 {[%emt 0:04:10]} 49. Nf3 {[%emt 0:01:19]} Ke7 {[%emt 0:04:26]} 50. Ne5 {[%emt 0:00:40]} Bc7 {[%emt 0:02:33]} 51. Nc6+ {[%emt 0:00:54]} Kd7 {[%emt 0:04:16]} 52. Nd4 {[%emt 0:00:20]} Bd8 {[%emt 0:01:09]} 53. Ke5 {[%emt 0:04:12]} Be7 {[%emt 0:01:41]} 54. Nf3 {[%emt 0:01:14]} Ke8 {[%emt 0:08:40]} 55. Nd4 {[%emt 0:03:31]} Bc5 {[%emt 0:02:16]} 56. Nf3 {[%emt 0:03:05]} Bf2 {[%emt 0:00:20]} 57. Ke4 {[%emt 0:01:50]} Ke7 {[%emt 0:02:49]} 58. Ke5 {[%emt 0:00:35]} Bg3 {[%emt 0:01:02]} 59. Ke4 {[%emt 0:00:09]} Ke8 {[%emt 0:12:47]} 60. Ke5 {[%emt 0:00:26]} Kf8 {[%emt 0:00:08]} 61. Ke4 {[%emt 0:00:19]} Ke7 {[%emt 0:00:03]} 62. Ke5 {[%emt 0:00:31]} Bf2 {[%emt 0:00:10]} 63. Ke4 {[%emt 0:00:12]} f6 {[%emt 0:00:22]} 64. Kd3 {[%emt 0:01:06]} fxg5 {[%emt 0:00:24]} 65. fxg5 {[%emt 0:00:16]} Kd6 {[%emt 0:00:43]} 66. Ke4 {[%emt 0:00:44]} Bg3 {[%emt 0:00:26]} 67. Kd4 {[%emt 0:00:19]} e5+ {[%emt 0:00:52]} 68. Ke4 {[%emt 0:00:13]} Ke6 {[%emt 0:00:24]} 69. Kd3 {[%emt 0:00:58]} Kf5 {[%emt 0:00:31]} 70. Ke3 {[%emt 0:01:06]} Bf4+ {[%emt 0:01:24]} 71. Ke2 {[%emt 0:00:52]} Kg4 {[%emt 0:01:17]} 72. Kf2 {[%emt 0:00:13]} e4 {[%emt 0:01:05]} 73. Ne1 {[%emt 0:01:37]} Bg3+ {[%emt 0:00:55]} 74. Ke3 {[%emt 0:00:37]} Bxe1 {[%emt 0:00:16]} 75. Kxe4 {[%emt 0:00:04]} Bxh4 {[%emt 0:00:06]} 76. Ke3 {[%emt 0:00:06]} Kg3 {[%emt 0:00:25]} 77. Ke2 {[%emt 0:00:14]} Kg2 {[%emt 0:00:06]} 78. Ke3 {[%emt 0:00:12]} Bxg5+ {[%emt 0:00:05]} 79. Ke4 {[%emt 0:00:06]} h4 {[%emt 0:00:10]} 0-1